[Event "15e Open International de Quenza"]
[Site "Quenza"]
[Date "2026.07.05"]
[Round "5.14"]
[White "FRAGNAUD, Jean-Guy"]
[Black "PIERI, Pierre-Louis"]
[Result "0-1"]
[TimeControl "5min+3s"]
[WhiteTitle "-"]
[BlackTitle "-"]
[WhiteFideId "-"]
[BlackFideId "-"]
[WhiteElo "1929"]
[BlackElo "2236"]

1. d4 {[%clk 00:05:03]} e6 {[%clk 00:05:03]} {[%emt 00:00:02]} 2. Nf3 {[%clk
00:05:03]} Nf6 {[%clk 00:05:00]} {[%emt 00:00:07]} 3. Bg5 {[%clk 00:05:03]}
{[%emt 00:00:01]} c5 {[%clk 00:04:57]} {[%emt 00:00:06]} 4. e3 {[%clk
00:05:03]} Nc6 {[%clk 00:04:56]} {[%emt 00:00:04]} 5. Bd3 {[%clk 00:05:03]}
{[%emt 00:00:01]} h6 {[%clk 00:04:49]} {[%emt 00:00:10]} 6. Bh4 {[%clk
00:05:03]} Be7 {[%clk 00:04:42]} {[%emt 00:00:10]} 7. O-O {[%clk 00:05:02]}
{[%emt 00:00:04]} d5 {[%clk 00:04:39]} {[%emt 00:00:06]} 8. c3 {[%clk
00:04:48]} {[%emt 00:00:18]} O-O {[%clk 00:04:39]} {[%emt 00:00:02]} 9. Nbd2
{[%clk 00:04:48]} {[%emt 00:00:01]} a6 {[%clk 00:04:18]} {[%emt 00:00:25]} 10.
a4 {[%clk 00:04:48]} Nd7 {[%emt 00:00:25]} 11. Bg3 {[%clk 00:04:45]} {[%emt
00:00:05]} Bf6 {[%clk 00:03:54]} {[%emt 00:00:06]} 12. Re1 {[%clk 00:04:44]}
{[%emt 00:00:03]} e5 {[%clk 00:03:52]} {[%emt 00:00:05]} 13. dxe5 {[%clk
00:03:58]} {[%emt 00:00:50]} Ndxe5 {[%clk 00:03:52]} 14. Bc2 {[%clk 00:03:26]}
{[%emt 00:00:35]} Be6 {[%clk 00:03:48]} {[%emt 00:00:07]} 15. a5 {[%clk
00:03:12]} {[%emt 00:00:17]} Nxf3+ {[%clk 00:03:41]} {[%emt 00:00:09]} 16. Nxf3
{[%clk 00:03:03]} {[%emt 00:00:12]} Nxa5 {[%clk 00:03:41]} {[%emt 00:00:01]} 17.
Ne5 {[%clk 00:02:42]} {[%emt 00:00:24]} g6 {[%clk 00:03:05]} {[%emt 00:00:40]}
18. Qf3 {[%clk 00:02:31]} {[%emt 00:00:13]} Nc6 {[%clk 00:03:02]} {[%emt
00:00:05]} 19. Nd3 {[%clk 00:02:24]} {[%emt 00:00:11]} b6 {[%clk 00:02:41]}
{[%emt 00:00:24]} 20. Rad1 {[%clk 00:02:24]} {[%emt 00:00:02]} Bg7 {[%clk
00:02:32]} {[%emt 00:00:12]} 21. h3 {[%clk 00:02:11]} {[%emt 00:00:16]} Qf6
{[%clk 00:02:28]} {[%emt 00:00:07]} 22. Qxf6 {[%clk 00:01:54]} {[%emt
00:00:20]} Bxf6 {[%clk 00:02:28]} {[%emt 00:00:01]} 23. Nf4 {[%clk 00:01:54]}
{[%emt 00:00:02]} Ne7 {[%clk 00:01:52]} {[%emt 00:00:39]} 24. Rd2 {[%clk
00:01:52]} {[%emt 00:00:04]} Ra7 {[%clk 00:01:31]} {[%emt 00:00:24]} 25. Red1
{[%clk 00:01:47]} {[%emt 00:00:08]} Rd7 {[%clk 00:01:23]} {[%emt 00:00:12]} 26.
h4 {[%clk 00:01:29]} {[%emt 00:00:21]} Rfd8 {[%clk 00:01:12]} {[%emt 00:00:14]}
27. Ne2 {[%clk 00:01:07]} {[%emt 00:00:24]} Nf5 {[%clk 00:01:10]} {[%emt
00:00:06]} 28. Bxf5 {[%clk 00:01:00]} {[%emt 00:00:10]} Bxf5 {[%clk 00:01:10]}
{[%emt 00:00:03]} 29. Nf4 {[%clk 00:00:56]} {[%emt 00:00:06]} d4 {[%clk
00:01:04]} {[%emt 00:00:09]} 30. exd4 {[%clk 00:00:48]} {[%emt 00:00:10]} cxd4
{[%clk 00:01:04]} {[%emt 00:00:01]} 31. cxd4 {[%clk 00:00:48]} {[%emt
00:00:02]} Rxd4 {[%clk 00:01:04]} {[%emt 00:00:04]} 32. Rxd4 {[%clk 00:00:46]}
{[%emt 00:00:05]} Rxd4 {[%clk 00:01:04]} 33. Ra1 {[%clk 00:00:30]} {[%emt
00:00:19]} a5 {[%clk 00:01:04]} {[%emt 00:00:03]} 34. Rc1 {[%clk 00:00:15]}
{[%emt 00:00:18]} Rb4 {[%clk 00:01:01]} {[%emt 00:00:07]} 35. Nd5 {[%clk
00:00:05]} {[%emt 00:00:13]} Bxb2 {[%clk 00:00:59]} {[%emt 00:00:04]} 36. Rc7
{[%clk 00:00:05]} {[%emt 00:00:03]} Rb5 {[%clk 00:00:54]} {[%emt 00:00:08]} 37.
Ne7+ {[%clk 00:00:05]} {[%emt 00:00:03]} Kg7 {[%clk 00:00:54]} {[%emt
00:00:02]} 38. Nxf5+ {[%clk 00:00:05]} {[%emt 00:00:03]} gxf5 {[%clk 00:00:54]}
{[%emt 00:00:01]} 39. Bf4 {[%clk 00:00:05]} {[%emt 00:00:02]} Bf6 {[%clk
00:00:53]} {[%emt 00:00:04]} 40. h5 {[%clk 00:00:05]} {[%emt 00:00:02]} Rb4
{[%clk 00:00:49]} {[%emt 00:00:07]} 41. Bd6 {[%clk 00:00:05]} {[%emt 00:00:03]}
Re4 {[%clk 00:00:48]} {[%emt 00:00:04]} 42. Rc8 {[%clk 00:00:04]} {[%emt
00:00:03]} Re1+ {[%clk 00:00:48]} {[%emt 00:00:02]} 43. Kh2 {[%clk 00:00:04]}
{[%emt 00:00:01]} Be5+ {[%clk 00:00:48]} {[%emt 00:00:01]} 44. Bxe5+ {[%clk
00:00:04]} {[%emt 00:00:03]} Rxe5 {[%clk 00:00:48]} {[%emt 00:00:01]} 45. Rb8
{[%clk 00:00:04]} b5 {[%clk 00:00:47]} {[%emt 00:00:04]} 46. Kg3 {[%clk
00:00:04]} a4 {[%clk 00:00:40]} {[%emt 00:00:10]} 47. Kf4 {[%clk 00:00:04]}
{[%emt 00:00:01]} Rc5 {[%clk 00:00:40]} 48. Ra8 {[%clk 00:00:04]} {[%emt
00:00:03]} Rc6 {[%clk 00:00:39]} {[%emt 00:00:04]} 49. Rb8 {[%clk 00:00:04]}
{[%emt 00:00:03]} Ra6 {[%clk 00:00:35]} {[%emt 00:00:07]} 50. Rxb5 {[%clk
00:00:04]} {[%emt 00:00:02]} a3 {[%clk 00:00:35]} 51. Rb1 {[%clk 00:00:04]} Kf6
{[%clk 00:00:35]} {[%emt 00:00:03]} 52. Rd1 {[%emt 00:00:04]} 0-1

[Event "15e Open International de Quenza"]
[Site "Quenza"]
[Date "2026.07.05"]
[Round "5.13"]
[White "BATSIASHVILI, Nino"]
[Black "HAVE, Didier"]
[Result "1-0"]
[TimeControl "5min+3s"]
[WhiteTitle "GM"]
[BlackTitle "-"]
[WhiteFideId "-"]
[BlackFideId "-"]
[WhiteElo "2306"]
[BlackElo "1965"]

1. d4 {[%clk 00:05:03]} {[%emt 00:00:02]} d5 {[%clk 00:05:03]} {[%emt
00:00:01]} 2. c4 {[%clk 00:05:03]} {[%emt 00:00:01]} e6 {[%clk 00:05:03]} 3.
Nc3 {[%clk 00:05:03]} f5 {[%clk 00:05:03]} {[%emt 00:00:03]} 4. Bf4 {[%clk
00:05:03]} {[%emt 00:00:02]} c6 {[%clk 00:05:03]} {[%emt 00:00:03]} 5. e3
{[%clk 00:05:03]} {[%emt 00:00:01]} Nf6 {[%clk 00:05:03]} {[%emt 00:00:01]} 6.
Nf3 {[%clk 00:05:03]} {[%emt 00:00:03]} Be7 {[%clk 00:05:00]} {[%emt 00:00:06]}
7. Bd3 {[%clk 00:05:03]} {[%emt 00:00:04]} O-O {[%clk 00:04:56]} {[%emt
00:00:07]} 8. O-O {[%clk 00:05:03]} {[%emt 00:00:02]} Ne4 {[%clk 00:04:44]}
{[%emt 00:00:15]} 9. h3 {[%clk 00:04:58]} {[%emt 00:00:08]} Nd7 {[%clk
00:04:17]} {[%emt 00:00:29]} 10. Ne2 {[%clk 00:04:58]} {[%emt 00:00:01]} b6
{[%clk 00:03:42]} {[%emt 00:00:39]} 11. Bh2 {[%clk 00:04:57]} {[%emt 00:00:03]}
Bb7 {[%clk 00:03:42]} {[%emt 00:00:02]} 12. Rc1 {[%clk 00:04:45]} {[%emt
00:00:16]} Rc8 {[%clk 00:03:42]} {[%emt 00:00:01]} 13. a3 {[%clk 00:04:25]}
{[%emt 00:00:23]} c5 {[%clk 00:03:36]} {[%emt 00:00:08]} 14. Nf4 {[%clk
00:04:23]} {[%emt 00:00:06]} Rf6 {[%clk 00:03:23]} {[%emt 00:00:17]} 15. Ne5
{[%clk 00:04:23]} {[%emt 00:00:03]} Nxe5 {[%clk 00:03:03]} {[%emt 00:00:23]} 16.
dxe5 {[%clk 00:04:23]} {[%emt 00:00:01]} Rh6 {[%clk 00:03:02]} {[%emt
00:00:04]} 17. Be2 {[%clk 00:03:52]} {[%emt 00:00:34]} Ng5 {[%clk 00:02:42]}
{[%emt 00:00:23]} 18. Qb3 {[%clk 00:03:40]} {[%emt 00:00:15]} Nf7 {[%clk
00:02:12]} {[%emt 00:00:32]} 19. cxd5 {[%clk 00:03:10]} {[%emt 00:00:33]} exd5
{[%clk 00:02:02]} {[%emt 00:00:14]} 20. e6 {[%clk 00:03:10]} Nd6 {[%clk
00:01:19]} {[%emt 00:00:47]} 21. Nxd5 {[%clk 00:03:02]} {[%emt 00:00:10]} Rg6
{[%clk 00:01:16]} {[%emt 00:00:06]} 22. Nf4 {[%clk 00:02:57]} {[%emt 00:00:09]}
Rh6 {[%clk 00:00:54]} {[%emt 00:00:25]} 23. Rfd1 {[%clk 00:02:57]} g5 {[%clk
00:00:52]} {[%emt 00:00:05]} 24. Nd5 {[%clk 00:02:57]} {[%emt 00:00:01]} Ne4
{[%clk 00:00:38]} {[%emt 00:00:18]} 25. Nxe7+ {[%clk 00:02:50]} {[%emt
00:00:10]} Qxe7 {[%clk 00:00:38]} {[%emt 00:00:01]} 26. Rd7 {[%clk 00:02:50]}
Nf6 {[%emt 00:00:33]} 1-0

[Event "15e Open International de Quenza"]
[Site "Quenza"]
[Date "2026.07.05"]
[Round "5.10"]
[White "RELANGE, Eloi"]
[Black "DELADERRIERE, Calypso"]
[Result "1-0"]
[TimeControl "5min+3s"]
[WhiteTitle "GM"]
[BlackTitle "-"]
[WhiteFideId "-"]
[BlackFideId "-"]
[WhiteElo "2416"]
[BlackElo "2074"]

1. d4 {[%clk 00:05:03]} {[%emt 00:00:02]} Nf6 {[%clk 00:05:03]} {[%emt
00:00:04]} 2. c4 {[%clk 00:05:03]} {[%emt 00:00:03]} e6 {[%clk 00:05:03]}
{[%emt 00:00:02]} 3. Nc3 {[%clk 00:05:01]} {[%emt 00:00:05]} Bb4 {[%clk
00:04:57]} {[%emt 00:00:09]} 4. Qc2 {[%clk 00:05:01]} {[%emt 00:00:02]} c5
{[%clk 00:04:37]} {[%emt 00:00:23]} 5. dxc5 {[%clk 00:05:01]} {[%emt 00:00:03]}
Bxc5 {[%clk 00:04:27]} {[%emt 00:00:14]} 6. Nf3 {[%clk 00:05:01]} {[%emt
00:00:02]} Nc6 {[%clk 00:04:27]} {[%emt 00:00:01]} 7. Bg5 {[%clk 00:04:50]}
{[%emt 00:00:13]} h6 {[%clk 00:04:00]} {[%emt 00:00:29]} 8. Bh4 {[%clk
00:04:50]} {[%emt 00:00:04]} b6 {[%clk 00:03:50]} {[%emt 00:00:13]} 9. e3
{[%clk 00:04:43]} {[%emt 00:00:10]} Bb7 {[%clk 00:03:48]} {[%emt 00:00:06]} 10.
Be2 {[%clk 00:04:43]} {[%emt 00:00:02]} Be7 {[%clk 00:03:32]} {[%emt 00:00:19]}
11. O-O {[%clk 00:04:43]} {[%emt 00:00:02]} O-O {[%clk 00:03:32]} {[%emt
00:00:03]} 12. Rfd1 {[%clk 00:04:43]} {[%emt 00:00:03]} d6 {[%clk 00:03:23]}
{[%emt 00:00:12]} 13. Rd2 {[%clk 00:04:28]} {[%emt 00:00:17]} a6 {[%clk
00:03:23]} {[%emt 00:00:02]} 14. Rad1 {[%clk 00:04:28]} Qc7 {[%clk 00:03:23]}
{[%emt 00:00:02]} 15. Bxf6 {[%clk 00:03:32]} {[%emt 00:00:59]} Bxf6 {[%clk
00:02:57]} {[%emt 00:00:29]} 16. Ne4 {[%clk 00:03:29]} {[%emt 00:00:06]} Be7
{[%clk 00:01:56]} {[%emt 00:01:03]} 17. Nxd6 {[%clk 00:03:29]} {[%emt
00:00:03]} Rad8 {[%clk 00:01:35]} {[%emt 00:00:24]} 18. Nxb7 {[%clk 00:03:28]}
{[%emt 00:00:04]} Qxb7 {[%clk 00:01:34]} {[%emt 00:00:05]} 19. Qe4 {[%clk
00:03:19]} {[%emt 00:00:11]} Rxd2 {[%clk 00:01:23]} {[%emt 00:00:16]} 20. Rxd2
{[%clk 00:03:19]} Qc8 {[%clk 00:01:23]} {[%emt 00:00:03]} 21. h4 {[%clk
00:03:06]} {[%emt 00:00:16]} Bf6 {[%clk 00:01:23]} {[%emt 00:00:02]} 22. Bd3
{[%clk 00:03:04]} {[%emt 00:00:04]} Rd8 {[%clk 00:01:07]} {[%emt 00:00:19]} 23.
a3 {[%clk 00:02:48]} {[%emt 00:00:18]} Kf8 {[%clk 00:01:02]} {[%emt 00:00:09]}
24. b4 {[%clk 00:02:39]} {[%emt 00:00:12]} Ne7 {[%clk 00:00:49]} {[%emt
00:00:15]} 25. h5 {[%clk 00:02:20]} {[%emt 00:00:22]} Nf5 {[%clk 00:00:49]}
{[%emt 00:00:02]} 26. g4 {[%clk 00:01:49]} {[%emt 00:00:34]} Nd6 {[%clk
00:00:49]} {[%emt 00:00:01]} 27. Qh7 {[%clk 00:01:48]} {[%emt 00:00:03]} Ke7
{[%clk 00:00:45]} {[%emt 00:00:08]} 28. Be2 {[%clk 00:01:21]} {[%emt 00:00:30]}
Bc3 {[%clk 00:00:22]} {[%emt 00:00:26]} 29. Rc2 {[%clk 00:01:16]} {[%emt
00:00:07]} Bf6 {[%clk 00:00:22]} {[%emt 00:00:03]} 30. c5 {[%clk 00:01:16]}
{[%emt 00:00:03]} bxc5 {[%clk 00:00:22]} {[%emt 00:00:02]} 31. bxc5 {[%clk
00:01:16]} {[%emt 00:00:01]} Nb5 {[%clk 00:00:22]} {[%emt 00:00:03]} 32. Qe4
{[%clk 00:01:09]} {[%emt 00:00:09]} Rd5 {[%clk 00:00:22]} {[%emt 00:00:04]} 33.
Bxb5 {[%clk 00:01:06]} {[%emt 00:00:07]} axb5 {[%clk 00:00:19]} {[%emt
00:00:06]} 34. c6 {[%clk 00:01:06]} {[%emt 00:00:01]} Qc7 {[%clk 00:00:19]}
{[%emt 00:00:03]} 35. Qb4+ {[%clk 00:00:59]} {[%emt 00:00:09]} Ke8 {[%clk
00:00:19]} {[%emt 00:00:02]} 36. Kg2 {[%clk 00:00:56]} {[%emt 00:00:06]} Be7
{[%clk 00:00:19]} {[%emt 00:00:01]} 37. Qb3 {[%clk 00:00:46]} {[%emt 00:00:13]}
Bd6 {[%clk 00:00:05]} {[%emt 00:00:17]} 38. Nd4 {[%clk 00:00:37]} {[%emt
00:00:11]} Qb6 {[%clk 00:00:05]} {[%emt 00:00:01]} 39. Qd3 {[%clk 00:00:24]}
{[%emt 00:00:16]} Ke7 {[%clk 00:00:05]} {[%emt 00:00:03]} 40. Qe4 {[%clk
00:00:23]} {[%emt 00:00:04]} Rc5 {[%clk 00:00:05]} {[%emt 00:00:02]} 41. Nf5+
{[%clk 00:00:20]} {[%emt 00:00:05]} Rxf5 {[%clk 00:00:04]} {[%emt 00:00:05]} 42.
gxf5 {[%clk 00:00:20]} {[%emt 00:00:03]} Qc7 {[%clk 00:00:04]} {[%emt
00:00:02]} 43. fxe6 {[%clk 00:00:19]} {[%emt 00:00:03]} fxe6 {[%clk 00:00:04]}
44. f4 {[%clk 00:00:19]} Bxa3 {[%clk 00:00:04]} {[%emt 00:00:02]} 45. Qd3
{[%clk 00:00:14]} {[%emt 00:00:08]} b4 {[%clk 00:00:04]} {[%emt 00:00:02]} 46.
Kf3 {[%clk 00:00:14]} {[%emt 00:00:02]} Kf6 {[%clk 00:00:04]} {[%emt 00:00:02]}
47. Qb5 {[%clk 00:00:13]} {[%emt 00:00:04]} Qd6 {[%clk 00:00:04]} {[%emt
00:00:03]} 48. Ke2 {[%clk 00:00:10]} {[%emt 00:00:06]} Qc7 {[%clk 00:00:04]}
{[%emt 00:00:03]} 49. Qe5+ {[%clk 00:00:10]} {[%emt 00:00:02]} 1-0

[Event "15e Open International de Quenza"]
[Site "Quenza"]
[Date "2026.07.05"]
[Round "5.11"]
[White "TREGUBOV, Pavel V."]
[Black "ROUBERT, Emile"]
[Result "1-0"]
[TimeControl "5min+3s"]
[WhiteTitle "GM"]
[BlackTitle "-"]
[WhiteFideId "-"]
[BlackFideId "-"]
[WhiteElo "2391"]
[BlackElo "2021"]

1. e4 {[%clk 00:05:03]} {[%emt 00:17:57]} e5 {[%clk 00:05:03]} {[%emt
00:00:01]} 2. Nf3 {[%clk 00:05:03]} {[%emt 00:00:03]} Nc6 {[%clk 00:05:03]}
{[%emt 00:00:02]} 3. Bb5 {[%clk 00:05:03]} {[%emt 00:00:01]} a6 {[%clk
00:05:03]} {[%emt 00:00:03]} 4. Ba4 {[%clk 00:05:03]} Nf6 {[%clk 00:05:02]}
{[%emt 00:00:05]} 5. d4 {[%clk 00:05:03]} {[%emt 00:00:02]} exd4 {[%clk
00:04:44]} {[%emt 00:00:20]} 6. O-O {[%clk 00:05:03]} {[%emt 00:00:02]} Be7
{[%clk 00:04:30]} {[%emt 00:00:18]} 7. e5 {[%clk 00:05:03]} {[%emt 00:00:02]}
Ne4 {[%clk 00:04:28]} {[%emt 00:00:05]} 8. Nxd4 {[%clk 00:05:03]} {[%emt
00:00:02]} Nc5 {[%clk 00:04:12]} {[%emt 00:00:19]} 9. Nf5 {[%clk 00:05:02]}
{[%emt 00:00:03]} O-O {[%clk 00:03:31]} {[%emt 00:00:44]} 10. Qg4 {[%clk
00:05:01]} {[%emt 00:00:04]} g6 {[%clk 00:03:31]} {[%emt 00:00:02]} 11. Nxe7+
{[%clk 00:05:00]} {[%emt 00:00:04]} Qxe7 {[%clk 00:03:31]} {[%emt 00:00:03]} 12.
Bxc6 {[%clk 00:04:58]} {[%emt 00:00:05]} bxc6 {[%clk 00:03:06]} {[%emt
00:00:29]} 13. Qg3 {[%clk 00:04:41]} {[%emt 00:00:20]} d6 {[%clk 00:02:47]}
{[%emt 00:00:22]} 14. exd6 {[%clk 00:04:11]} {[%emt 00:00:32]} cxd6 {[%clk
00:02:47]} {[%emt 00:00:04]} 15. Bf4 {[%clk 00:03:43]} {[%emt 00:00:30]} Ne4
{[%clk 00:02:44]} {[%emt 00:00:07]} 16. Qa3 {[%clk 00:03:11]} {[%emt 00:00:35]}
Qf6 {[%clk 00:02:29]} {[%emt 00:00:18]} 17. Bh6 {[%clk 00:02:41]} {[%emt
00:00:32]} Re8 {[%clk 00:02:29]} {[%emt 00:00:04]} 18. f3 {[%clk 00:02:18]}
{[%emt 00:00:27]} Nc5 {[%clk 00:02:18]} {[%emt 00:00:14]} 19. Qc3 {[%clk
00:02:14]} {[%emt 00:00:07]} Qxc3 {[%clk 00:02:09]} {[%emt 00:00:11]} 20. Nxc3
{[%clk 00:02:14]} {[%emt 00:00:01]} Bf5 {[%clk 00:02:05]} {[%emt 00:00:07]} 21.
Rf2 {[%clk 00:02:02]} {[%emt 00:00:15]} f6 {[%clk 00:02:05]} {[%emt 00:00:02]}
22. h4 {[%clk 00:02:02]} {[%emt 00:00:02]} Kf7 {[%clk 00:02:03]} {[%emt
00:00:04]} 23. Rd1 {[%clk 00:01:54]} {[%emt 00:00:11]} d5 {[%clk 00:02:03]}
{[%emt 00:00:02]} 24. g4 {[%clk 00:01:40]} {[%emt 00:00:16]} Bd7 {[%clk
00:01:53]} {[%emt 00:00:14]} 25. Re2 {[%clk 00:01:36]} {[%emt 00:00:07]} Rxe2
26. Nxe2 {[%clk 00:01:36]} a5 {[%clk 00:01:38]} {[%emt 00:00:09]} 27. Kf2
{[%clk 00:01:19]} {[%emt 00:00:19]} Rb8 {[%clk 00:01:37]} {[%emt 00:00:05]} 28.
b3 {[%clk 00:01:19]} {[%emt 00:00:02]} a4 {[%clk 00:01:37]} {[%emt 00:00:01]}
29. Nd4 {[%clk 00:01:16]} {[%emt 00:00:05]} axb3 {[%clk 00:01:36]} {[%emt
00:00:04]} 30. cxb3 {[%clk 00:01:13]} {[%emt 00:00:05]} Ne6 {[%clk 00:01:36]}
{[%emt 00:00:03]} 31. Be3 {[%clk 00:01:11]} {[%emt 00:00:06]} Ra8 {[%clk
00:01:30]} {[%emt 00:00:09]} 32. a4 {[%clk 00:01:05]} {[%emt 00:00:09]} Rb8
{[%clk 00:01:21]} {[%emt 00:00:13]} 33. Rb1 {[%clk 00:01:05]} {[%emt 00:00:02]}
c5 {[%clk 00:01:18]} {[%emt 00:00:06]} 34. Nxe6 Kxe6 {[%clk 00:01:18]} 35. Bxc5
{[%clk 00:01:05]} {[%emt 00:00:02]} Bxa4 {[%clk 00:01:18]} 36. Re1+ {[%clk
00:01:05]} {[%emt 00:00:01]} 1-0

[Event "15e Open International de Quenza"]
[Site "Quenza"]
[Date "2026.07.05"]
[Round "5.6"]
[White "FEDORCHUK, Sergey A."]
[Black "DE SEROUX, Camille"]
[Result "1-0"]
[TimeControl "5min+3s"]
[WhiteTitle "GM"]
[BlackTitle "WIM"]
[WhiteFideId "-"]
[BlackFideId "-"]
[WhiteElo "2530"]
[BlackElo "2076"]

1. e4 {[%clk 00:05:03]} {[%emt 00:00:01]} Nc6 {[%clk 00:05:03]} {[%emt
00:00:02]} 2. Nf3 {[%clk 00:05:01]} {[%emt 00:00:06]} d6 {[%clk 00:05:03]}
{[%emt 00:00:03]} 3. d4 {[%clk 00:04:58]} {[%emt 00:00:06]} Nf6 {[%clk
00:05:03]} {[%emt 00:00:02]} 4. Nc3 {[%clk 00:04:58]} {[%emt 00:00:01]} g6
{[%clk 00:05:03]} {[%emt 00:00:01]} 5. Be3 {[%clk 00:04:45]} {[%emt 00:00:16]}
Bg7 {[%clk 00:05:03]} {[%emt 00:00:02]} 6. h3 {[%clk 00:04:44]} {[%emt
00:00:05]} O-O {[%clk 00:05:03]} {[%emt 00:00:03]} 7. d5 {[%clk 00:04:36]}
{[%emt 00:00:12]} Nb8 {[%clk 00:05:03]} {[%emt 00:00:02]} 8. Bc4 {[%clk
00:04:34]} {[%emt 00:00:05]} e5 {[%clk 00:04:41]} {[%emt 00:00:25]} 9. dxe6
{[%clk 00:04:33]} {[%emt 00:00:04]} Bxe6 {[%clk 00:04:39]} {[%emt 00:00:04]} 10.
Bxe6 {[%clk 00:04:33]} {[%emt 00:00:02]} fxe6 {[%clk 00:04:39]} {[%emt
00:00:04]} 11. e5 {[%clk 00:04:09]} {[%emt 00:00:27]} dxe5 {[%clk 00:04:30]}
{[%emt 00:00:11]} 12. Qxd8 {[%clk 00:04:09]} {[%emt 00:00:02]} Rxd8 {[%clk
00:04:30]} {[%emt 00:00:02]} 13. Bg5 {[%clk 00:04:06]} {[%emt 00:00:07]} Nc6
{[%clk 00:04:13]} {[%emt 00:00:20]} 14. Bxf6 {[%clk 00:04:06]} {[%emt
00:00:02]} Bxf6 {[%clk 00:04:12]} {[%emt 00:00:04]} 15. Ne4 {[%clk 00:04:06]}
{[%emt 00:00:01]} Kg7 {[%clk 00:03:29]} {[%emt 00:00:46]} 16. c3 {[%clk
00:04:06]} {[%emt 00:00:01]} h6 {[%clk 00:03:10]} {[%emt 00:00:22]} 17. Ke2
{[%clk 00:04:03]} {[%emt 00:00:07]} b6 {[%clk 00:02:55]} {[%emt 00:00:17]} 18.
h4 {[%clk 00:04:00]} {[%emt 00:00:06]} Rd5 {[%clk 00:02:47]} {[%emt 00:00:11]}
19. h5 {[%clk 00:03:58]} {[%emt 00:00:05]} g5 {[%clk 00:02:43]} {[%emt
00:00:06]} 20. Nh2 {[%clk 00:03:58]} {[%emt 00:00:02]} Rad8 {[%clk 00:02:37]}
{[%emt 00:00:09]} 21. Ng4 {[%clk 00:03:58]} {[%emt 00:00:03]} Be7 {[%clk
00:02:37]} {[%emt 00:00:02]} 22. Ne3 {[%clk 00:03:49]} {[%emt 00:00:13]} R5d7
{[%clk 00:02:34]} {[%emt 00:00:06]} 23. Rad1 {[%clk 00:03:37]} {[%emt
00:00:15]} Rxd1 {[%clk 00:02:20]} {[%emt 00:00:16]} 24. Nxd1 {[%clk 00:03:37]}
Na5 {[%clk 00:02:07]} {[%emt 00:00:16]} 25. Ne3 {[%clk 00:03:37]} {[%emt
00:00:02]} Nb7 {[%clk 00:02:02]} {[%emt 00:00:08]} 26. Ng4 {[%clk 00:03:20]}
{[%emt 00:00:20]} Bd6 {[%clk 00:01:51]} {[%emt 00:00:15]} 27. Rd1 {[%clk
00:03:09]} {[%emt 00:00:13]} Rf8 {[%clk 00:01:47]} {[%emt 00:00:07]} 28. b4
{[%clk 00:02:53]} {[%emt 00:00:20]} Rf5 {[%clk 00:01:00]} {[%emt 00:00:49]} 29.
a3 {[%clk 00:02:33]} {[%emt 00:00:23]} a5 {[%clk 00:00:55]} {[%emt 00:00:08]}
30. bxa5 {[%clk 00:02:21]} {[%emt 00:00:15]} bxa5 {[%clk 00:00:55]} {[%emt
00:00:03]} 31. a4 {[%clk 00:02:21]} {[%emt 00:00:01]} Rf8 {[%clk 00:00:30]}
{[%emt 00:00:27]} 32. Rb1 {[%clk 00:02:18]} {[%emt 00:00:07]} Nc5 {[%clk
00:00:29]} {[%emt 00:00:04]} 33. Nxc5 {[%clk 00:02:18]} {[%emt 00:00:02]} Bxc5
{[%clk 00:00:29]} {[%emt 00:00:01]} 34. Rb5 {[%clk 00:02:18]} Bb6 {[%clk
00:00:20]} {[%emt 00:00:13]} 35. Rxe5 {[%clk 00:02:18]} {[%emt 00:00:01]} Rf4
{[%clk 00:00:20]} {[%emt 00:00:03]} 36. f3 {[%clk 00:02:18]} {[%emt 00:00:02]}
Rxa4 {[%clk 00:00:20]} {[%emt 00:00:03]} 37. Rxe6 {[%clk 00:02:18]} {[%emt
00:00:01]} Ra2+ {[%clk 00:00:18]} {[%emt 00:00:04]} 38. Kd3 {[%clk 00:02:18]}
{[%emt 00:00:02]} Rxg2 {[%clk 00:00:18]} {[%emt 00:00:03]} 39. Rg6+ {[%clk
00:02:18]} Kf8 {[%clk 00:00:18]} {[%emt 00:00:03]} 40. Rxh6 {[%clk 00:02:16]}
{[%emt 00:00:05]} Rg3 {[%clk 00:00:18]} {[%emt 00:00:03]} 41. Ke4 {[%clk
00:02:16]} {[%emt 00:00:01]} a4 {[%clk 00:00:18]} {[%emt 00:00:02]} 42. Rh8+
{[%clk 00:02:16]} {[%emt 00:00:03]} Ke7 {[%clk 00:00:18]} {[%emt 00:00:02]} 43.
Ra8 {[%clk 00:02:16]} {[%emt 00:00:02]} Rg2 {[%clk 00:00:07]} {[%emt 00:00:14]}
44. h6 {[%clk 00:02:12]} {[%emt 00:00:07]} a3 {[%clk 00:00:05]} {[%emt
00:00:05]} 45. h7 {[%clk 00:02:11]} {[%emt 00:00:03]} 1-0